fUSD/lending_fUSD_20260108
["ID","MTS","AMOUNT","RATE_DAILY","PERIOD"]
[400800296,1767833441368,-1680.0,0.00015676,2]
[400800298,1767833441377,-221.11907953,0.00015676,2]
[400800300,1767833441387,-300.0,0.00015676,2]
[400800302,1767833441396,-250.0,0.00015676,2]
[400800304,1767833441405,-195.0,0.00015676,2]
[400800306,1767833441414,-195.0,0.00015676,2]
[400800308,1767833441425,-300.0,0.00015676,2]
[400800310,1767833441437,-195.0,0.00015676,2]
[400800312,1767833441450,-195.0,0.00015676,2]
[400800314,1767833441460,-960.0,0.00015711,2]
[400800316,1767833441469,-500.0,0.00015711,2]
[400800318,1767833441479,-1053.0,0.00015711,2]
[400800320,1767833441488,-960.0,0.00015766,2]
[400800322,1767833441498,-500.0,0.00015766,2]
[400800324,1767833441508,-1053.0,0.00015766,2]
[400800326,1767833441517,-960.0,0.00015821,2]
[400800328,1767833441526,-500.0,0.00015821,2]
[400800330,1767833441535,-1053.0,0.00015821,2]
[400800332,1767833441544,-1258.64,0.0001584,2]
[400800334,1767833441552,-286.20427772,0.00015857,2]
[400800336,1767833441561,-960.0,0.00015876,2]
[400800338,1767833441571,-500.0,0.00015876,2]
[400800340,1767833441580,-1053.0,0.00015876,2]
[400800342,1767833441589,-1913.7810744,0.000159,2]
[400800344,1767833441599,-1913.78107436,0.000159,2]
[400800346,1767833441608,-960.0,0.00015931,2]
[400800348,1767833441617,-500.0,0.00015931,2]
[400800350,1767833441627,-1053.0,0.00015931,2]
[400800352,1767833441636,-450.63605817,0.00015956,2]
[400800354,1767833441645,-500.0,0.00015956,2]
[400800356,1767833441654,-960.0,0.00015985,2]
[400800358,1767833441664,-500.0,0.00015985,2]
[400800360,1767833441673,-1053.0,0.00015985,2]
[400800362,1767833441683,-14592.63619585,0.00015994,2]
[400800364,1767833441692,-16213.60484857,0.00015994,2]
[400800366,1767833441700,-249.063448,0.00016,2]
[400800368,1767833441710,-960.0,0.0001604,2]
[400800370,1767833441719,-240.61097423,0.0001604,2]
[400800372,1767833441728,-1053.0,0.0001604,2]
[400800374,1767833441737,-960.0,0.00016095,2]
[400800376,1767833441749,-1053.0,0.00016095,2]
[400800378,1767833441758,-1258.64,0.00016114,2]
[400800380,1767833441767,-500.0,0.00016115,2]
[400800382,1767833441776,-9999.99,0.00016116,2]
[400800384,1767833441787,-960.0,0.0001615,2]
[400800386,1767833441795,-1053.0,0.0001615,2]
[400800388,1767833441804,-500.0,0.00016168,2]
[400800390,1767833441815,-500.0,0.00016168,2]
[400800392,1767833441823,-1500.0,0.00016168,2]
[400800394,1767833441832,-1501.70391837,0.00016168,2]
[400800396,1767833441842,-321.82288534,0.00016168,2]
[400800398,1767833441851,-1500.0,0.00016168,2]
[400800400,1767833441860,-1500.0,0.00016168,2]
[400800402,1767833441869,-1500.0,0.00016168,2]
[400800404,1767833441878,-509.96734995,0.00016168,2]
[400800406,1767833441887,-1500.0,0.00016168,2]
[400800408,1767833441897,-1500.0,0.00016168,2]
[400800410,1767833441908,-1000.0,0.00016168,2]
[400800412,1767833441917,-529.13192156,0.00016168,2]
[400800413,1767833441926,-949.69083076,0.00016168,2]
[400800415,1767833441936,-1500.0,0.00016168,2]
[400800416,1767833441946,-1500.0,0.00016168,2]
[400800418,1767833441955,-1500.0,0.00016168,2]
[400800420,1767833441964,-836.52086768,0.00016185,2]
[400800422,1767833441974,-150.0,0.000162,2]
[400800424,1767833441984,-960.0,0.00016204,2]
[400800426,1767833441993,-1053.0,0.00016204,2]
[400800428,1767833442002,-966.2212164,0.00016259,2]
[400800430,1767833442012,-1074.03877525,0.00016259,2]
[400800432,1767833442020,-150.0,0.00016267,2]
[400800434,1767833442030,-150.0,0.00016333,2]
[400800436,1767833442040,-286.20427772,0.00016368,2]
[400800438,1767833442049,-151.0,0.00016373,2]
[400800440,1767833442058,-14592.63619585,0.00016376,2]
[400800442,1767833442067,-16213.60484857,0.00016376,2]
[400800444,1767833442076,-1258.64,0.00016388,2]
[400800446,1767833442086,-1000.0,0.00016392,2]
[400800448,1767833442095,-150.0,0.000164,2]
[400800450,1767833442104,-162.0,0.000164,2]
[400800452,1767833442113,-162.0,0.000164,2]
[400800454,1767833442123,-833.0,0.000164,2]
[400800456,1767833442133,-633.3,0.000164,2]
[400800458,1767833442142,-445.74,0.000164,2]
[400800460,1767833442151,-413.8,0.000164,2]
[400800462,1767833442161,-500.0,0.00016438,2]
[400800464,1767833442171,-800.0,0.00016438,2]
[400800466,1767833442180,-150.0,0.00016467,2]
[400800468,1767833442190,-500.0,0.00016493,2]
[400800470,1767833442200,-150.0,0.00016533,2]
[400800472,1767833442210,-428.98,0.00016539,2]
[400800474,1767833442219,-500.0,0.00016548,2]
[400800476,1767833442228,-150.0,0.000166,2]
[400800478,1767833442237,-188.33554362,0.00016602,2]
[400800480,1767833442246,-500.0,0.00016643,2]
[400800482,1767833442256,-500.0,0.00016643,2]
[400800484,1767833442266,-500.0,0.00016643,2]
[400800486,1767833442275,-336.03289894,0.00016643,2]
[400800488,1767833442284,-500.0,0.00016643,2]
[400800489,1767833442293,-628.50709886,0.00016643,2]
[400800491,1767833442302,-500.0,0.00016643,2]
[400800493,1767833442311,-1258.64,0.00016662,2]
[400800495,1767833442320,-150.0,0.00016667,2]
[400800497,1767833442329,-2000.0,0.00016716,2]
[400800499,1767833442338,-1500.0,0.00016716,2]
[400800501,1767833442347,-2000.0,0.00016716,2]
[400800503,1767833442356,-2000.0,0.00016716,2]
[400800505,1767833442368,-2000.0,0.00016716,2]
[400800506,1767833442378,-2000.0,0.00016716,2]
[400800508,1767833442387,-1176.00349903,0.00016716,2]
[400800509,1767833442396,-2000.0,0.00016716,2]
[400800511,1767833442405,-2000.0,0.00016716,2]
[400800512,1767833442415,-833.0,0.0001672,2]
[400800514,1767833442424,-833.0,0.0001672,2]
[400800516,1767833442433,-348.0,0.0001672,2]
[400800517,1767833442442,-150.0,0.00016733,2]
[400800519,1767833442452,-157.15193471,0.00016755,2]
[400800521,1767833442461,-500.0,0.00016756,2]
[400800522,1767833442471,-14592.63619585,0.00016757,2]
[400800524,1767833442480,-16213.60484857,0.00016757,2]
[400800526,1767833442489,-836.52086768,0.00016757,2]
[400800527,1767833442498,-250.0,0.00016773,2]
[400800529,1767833442507,-433.0,0.00016783,2]
[400800531,1767833442516,-150.0,0.000168,2]
[400800533,1767833442525,-500.0,0.00016844,2]
[400800534,1767833442534,-500.0,0.00016844,2]
[400800536,1767833442543,-150.0,0.00016867,2]
[400800537,1767833442552,-549.9,0.00016927,2]
[400800539,1767833442562,-150.0,0.00016933,2]
[400800541,1767833442571,-620.0,0.00016936,2]
[400800542,1767833442580,-448.72451731,0.00016936,2]
[400800544,1767833442590,-151.0,0.00016936,2]
[400800546,1767833442598,-574.12855637,0.00016936,2]
[400800548,1767833442608,-1500.0,0.00016936,2]
[400800549,1767833442617,-1500.0,0.00016936,2]
[400800551,1767833442626,-1500.0,0.00016936,2]
[400800553,1767833442635,-1500.0,0.00016936,2]
[400800554,1767833442645,-151.55763012,0.00016936,2]
[400800556,1767833442654,-1500.0,0.00016936,2]
[400800558,1767833442664,-1500.0,0.00016936,2]
[400800560,1767833442673,-1500.0,0.00016936,2]
[400800562,1767833442682,-1500.0,0.00016936,2]
[400800563,1767833442691,-1500.0,0.00016936,2]
[400800565,1767833442701,-322.6107,0.00016936,2]
[400800567,1767833442710,-1500.0,0.00016936,2]
[400800568,1767833442719,-1500.0,0.00016936,2]
[400800570,1767833442729,-151.0,0.00016936,2]
[400800572,1767833442738,-500.0,0.00016936,2]
[400800574,1767833442751,-500.0,0.00016936,2]
[400800575,1767833442760,-500.0,0.00016936,2]
[400800577,1767833442770,-500.0,0.00016936,2]
[400800579,1767833442779,-404.25522477,0.00016936,2]
[400800580,1767833442787,-500.0,0.00016936,2]
[400800583,1767833442796,-500.0,0.00016936,2]
[400800585,1767833442805,-578.20924308,0.00016936,2]
[400800587,1767833442814,-500.0,0.00016936,2]
[400800590,1767833442823,-500.0,0.00016936,2]
[400800591,1767833442833,-500.0,0.00016936,2]
[400800593,1767833442842,-500.0,0.00016936,2]
[400800595,1767833442852,-500.0,0.00016936,2]
[400800596,1767833442861,-500.0,0.00016936,2]
[400800598,1767833442870,-500.0,0.00016936,2]
[400800600,1767833442879,-500.0,0.00016936,2]
[400800602,1767833442888,-500.0,0.00016936,2]
[400800604,1767833442897,-200.0,0.00016936,2]
[400800605,1767833442907,-500.0,0.00016936,2]
[400800607,1767833442916,-207.4,0.00016936,2]
[400800609,1767833442925,-500.0,0.00016936,2]
[400800611,1767833442935,-215.0738,0.00016936,2]
[400800612,1767833442944,-500.0,0.00016936,2]
[400800614,1767833442954,-223.0315306,0.00016936,2]
[400800616,1767833442965,-500.0,0.00016936,2]
[400800618,1767833442975,-231.28369723,0.00016936,2]
[400800620,1767833442984,-500.0,0.00016936,2]
[400800622,1767833442993,-500.0,0.00016936,2]
[400800623,1767833443002,-239.84119403,0.00016936,2]
[400800625,1767833443012,-500.0,0.00016936,2]
[400800627,1767833443021,-500.0,0.00016936,2]
[400800629,1767833443030,-248.71531821,0.00016936,2]
[400800630,1767833443039,-500.0,0.00016936,2]
[400800632,1767833443048,-500.0,0.00016936,2]
[400800634,1767833443057,-257.91778498,0.00016936,2]
[400800636,1767833443066,-500.0,0.00016936,2]
[400800637,1767833443075,-500.0,0.00016936,2]
[400800639,1767833443085,-267.46074303,0.00016936,2]
[400800641,1767833443094,-500.0,0.00016936,2]
[400800642,1767833443104,-500.0,0.00016936,2]
[400800644,1767833443113,-500.0,0.00016936,2]
[400800646,1767833443123,-277.35679052,0.00016936,2]
[400800648,1767833443132,-500.0,0.00016936,2]
[400800650,1767833443141,-500.0,0.00016936,2]
[400800651,1767833443150,-500.0,0.00016936,2]
[400800653,1767833443159,-500.0,0.00016936,2]
[400800655,1767833443168,-500.0,0.00016936,2]
[400800656,1767833443177,-2000.0,0.00016936,2]
[400800658,1767833443186,-2000.0,0.00016936,2]
[400800660,1767833443195,-2000.0,0.00016936,2]
[400800662,1767833443205,-2000.0,0.00016936,2]
[400800664,1767833443213,-2000.0,0.00016936,2]
[400800665,1767833443223,-2000.0,0.00016936,2]
[400800667,1767833443232,-2000.0,0.00016936,2]
[400800669,1767833443241,-2000.0,0.00016936,2]
[400800671,1767833443251,-2000.0,0.00016936,2]
[400800673,1767833443260,-2000.0,0.00016936,2]
[400800674,1767833443270,-2000.0,0.00016936,2]
[400800676,1767833443280,-250.0,0.00016936,2]
[400800678,1767833443291,-250.0,0.00016936,2]
[400800680,1767833443301,-1258.64,0.00016936,2]
[400800682,1767833443311,-304.2281947,0.00016964,2]
[400800684,1767833443321,-500.0,0.00016986,2]
[400800685,1767833443330,-500.0,0.00016986,2]
[400800687,1767833443339,-150.0,0.00017,2]
[400800689,1767833443348,-250.0,0.00017,2]
[400800691,1767833443358,-165.0,0.0001704,2]
[400800693,1767833443367,-150.0,0.00017067,2]
[400800694,1767833443377,-587.0,0.00017096,2]
[400800696,1767833443386,-500.0,0.00017123,2]
[400800698,1767833443395,-150.0,0.00017133,2]
[400800700,1767833443404,-14592.63619585,0.00017138,2]
[400800702,1767833443413,-16213.60484857,0.00017138,2]
[400800704,1767833443423,-634.29540262,0.00017164,2]
[400800705,1767833443433,-284.53,0.00017166,2]
[400800707,1767833443442,-300.0,0.00017178,2]
[400800709,1767833443452,-1000.0,0.00017191,2]
[400800711,1767833443463,-222.95362607,0.00017191,2]
[400800713,1767833443472,-150.0,0.000172,2]
[400800715,1767833443481,-1258.64,0.0001721,2]
[400800717,1767833443490,-827.5,0.00017233,2]
[400800718,1767833443500,-2351.0,0.00017243,2]
[400800720,1767833443510,-400.58303632,0.00017264,2]
[400800722,1767833443519,-500.0,0.00017264,2]
[400800724,1767833443529,-2500.0,0.00017264,2]
[400800726,1767833443539,-2000.0,0.00017264,2]
[400800728,1767833443550,-2500.0,0.00017264,2]
[400800729,1767833443560,-870.47980866,0.00017264,2]
[400800731,1767833443569,-2500.0,0.00017264,2]
[400800733,1767833443579,-150.0,0.00017267,2]
[400800735,1767833443587,-677.55,0.00017272,2]
[400800737,1767833443596,-1450.0,0.00017272,2]
[400800738,1767833443606,-827.5,0.00017303,2]
[400800740,1767833443615,-836.52086768,0.00017328,2]
[400800742,1767833443625,-150.0,0.00017333,2]
[400800744,1767833443635,-482.63,0.00017342,2]
[400800746,1767833443644,-482.63,0.00017342,2]
[400800748,1767833443654,-1241.95354039,0.0001735,2]
[400800749,1767833443664,-1688.95959214,0.00017351,2]
[400800751,1767833443674,-157.15193471,0.00017353,2]
[400800753,1767833443684,-833.0,0.0001736,2]
[400800755,1767833443693,-827.5,0.00017372,2]
[400800757,1767833443702,-162.0,0.0001738,2]
[400800759,1767833443711,-150.0,0.000174,2]
[400800761,1767833443720,-1000.0,0.000174,2]
[400800762,1767833443730,-827.5,0.00017442,2]
[400800764,1767833443740,-150.0,0.00017467,2]
[400800766,1767833443752,-549.9,0.00017478,2]
[400800768,1767833443761,-151.0,0.00017484,2]
[400800770,1767833443771,-595.37131296,0.00017484,2]
[400800772,1767833443781,-154.16307501,0.00017484,2]
[400800773,1767833443790,-1258.64,0.00017484,2]
[400800775,1767833443799,-827.5,0.00017512,2]
[400800777,1767833443809,-14592.63619585,0.00017519,2]
[400800779,1767833443819,-16213.60484857,0.00017519,2]
[400800781,1767833443827,-634.2954026,0.00017532,2]
[400800782,1767833443836,-150.0,0.00017533,2]
[400800784,1767833443845,-240.82358149,0.00017534,2]
[400800786,1767833443855,-1450.0,0.00017562,2]
[400800788,1767833443864,-2032.0,0.00017565,2]
[400800790,1767833443873,-1450.0,0.00017582,2]
[400800792,1767833443882,-827.5,0.00017582,2]
[400800793,1767833443891,-150.0,0.000176,2]
[400800795,1767833443900,-1000.0,0.000176,2]
[400800797,1767833443910,-5290.18189209,0.0001764,2]
[400800799,1767833443919,-827.5,0.00017651,2]
[400800801,1767833443927,-150.0,0.00017667,2]
[400800803,1767833443936,-166.68,0.00017674,2]
[400800804,1767833443946,-162.0,0.0001768,2]
[400800806,1767833443956,-10000.0,0.00017681,2]
[400800808,1767833443965,-1450.0,0.00017699,2]
[400800810,1767833443974,-25000.0,0.00017706,3]
[400800812,1767833443983,-25000.0,0.00017715,3]
[400800813,1767833443992,-827.5,0.00017721,2]
[400800814,1767833444001,-25000.0,0.00017724,3]
[400800815,1767833444010,-206.2528324,0.00017725,2]
[400800816,1767833444019,-25000.0,0.00017733,3]
[400800817,1767833444028,-150.0,0.00017733,2]
[400800818,1767833444037,-965.26,0.00017737,2]
[400800819,1767833444046,-450.04111853,0.00017739,2]
[400800820,1767833444056,-25000.0,0.00017742,3]
[400800821,1767833444065,-25000.0,0.0001775,3]
[400800822,1767833444077,-500.0,0.00017753,2]
[400800823,1767833444085,-1258.64,0.00017758,2]
[400800824,1767833444095,-25000.0,0.00017759,3]
[400800825,1767833444104,-25000.0,0.00017768,3]
[400800826,1767833444113,-25000.0,0.00017777,3]
[400800847,1767833444375,-174.14927633,0.00017785,2]
[400800849,1767833444385,-25000.0,0.00017786,3]
[400800852,1767833444395,-827.5,0.00017791,2]
[400800854,1767833444404,-25000.0,0.00017794,3]
[400800856,1767833444414,-2000.0,0.000178,2]
[400800858,1767833444423,-150.0,0.000178,2]
[400800860,1767833444434,-1000.0,0.000178,2]
[400800862,1767833444443,-500.0,0.00017803,2]
[400800864,1767833444452,-25000.0,0.00017803,3]
[400800866,1767833444461,-25000.0,0.00017812,3]
[400800868,1767833444472,-3000.0,0.00017812,2]
[400800870,1767833444482,-3000.0,0.00017812,2]
[400800872,1767833444491,-3000.0,0.00017812,2]
[400800874,1767833444501,-9455.59272,0.0001782,2]
[400800876,1767833444511,-9455.59273,0.0001782,2]
[400800878,1767833444520,-25000.0,0.00017821,3]
[400800880,1767833444530,-2032.0,0.00017824,2]
[400800882,1767833444539,-25000.0,0.0001783,3]
[400800884,1767833444549,-9455.59273,0.0001783,2]
[400800886,1767833444559,-3398.395,0.00017838,2]
[400800888,1767833444569,-174.361,0.00017838,2]
[400800890,1767833444579,-25000.0,0.00017838,3]
[400800892,1767833444588,-25000.0,0.00017847,3]
[400800894,1767833444598,-25000.0,0.00017856,3]
[400800896,1767833444607,-200.0,0.00017856,2]
[400800898,1767833444617,-9455.59273,0.0001786,2]
[400800900,1767833444626,-827.5,0.00017861,2]
[400800903,1767833444637,-25000.0,0.00017865,3]
[400800905,1767833444647,-150.0,0.00017867,2]
[400800907,1767833444657,-2032.0,0.00017869,2]
[400800909,1767833444666,-500.0,0.00017873,2]
[400800911,1767833444675,-25000.0,0.00017874,3]
[400800913,1767833444685,-9455.59272,0.0001788,2]
[400800915,1767833444694,-2032.0,0.0001788,2]
[400800917,1767833444703,-25000.0,0.00017882,3]
[400800919,1767833444713,-25000.0,0.00017891,3]
[400800921,1767833444723,-17435.94623006,0.000179,3]
[400800923,1767833444732,-25000.0,0.000179,3]
[400800925,1767833444742,-14592.63619585,0.000179,2]
[400800927,1767833444754,-634.2954026,0.000179,2]
[400800929,1767833444764,-16213.60484857,0.000179,2]
[400800931,1767833444774,-836.52086768,0.000179,2]
[400800933,1767833444783,-6334.39462442,0.000179,2]
[400800936,1767833444794,-568.98243293,0.000179,2]
[400800938,1767833444803,-14021.46462953,0.000179,2]
[400800940,1767833444814,-825.96603894,0.000179,3]
[400800942,1767833444823,-11880.0,0.000179,2]
[400800944,1767833444833,-9455.59273,0.0001791,2]
[400800946,1767833444842,-558.08,0.00017916,2]
[400800948,1767833444851,-827.5,0.0001793,2]
[400800950,1767833444860,-150.0,0.00017933,2]
[400800952,1767833444869,-157.15193471,0.00017952,2]
[400800954,1767833444879,-500.0,0.0001797,2]
[400800956,1767833444888,-500.0,0.0001797,2]
[400800958,1767833444898,-1000.0,0.0001797,2]
[400800960,1767833444908,-500.0,0.0001797,2]
[400800962,1767833444917,-1000.0,0.0001797,2]
[400800964,1767833444926,-500.0,0.0001797,2]
[400800966,1767833444935,-1000.0,0.0001797,2]
[400800968,1767833444945,-983.46328676,0.0001797,2]
[400800970,1767833444954,-1000.0,0.0001797,2]
[400800972,1767833444963,-1000.0,0.0001797,2]
[400800974,1767833444973,-1000.0,0.0001797,2]
[400800976,1767833444982,-1000.0,0.0001797,2]
[400800978,1767833444991,-1000.0,0.0001797,2]
[400800980,1767833445001,-1000.0,0.0001797,2]
[400800982,1767833445010,-1244.02944176,0.0001797,2]
[400800984,1767833445020,-150.0,0.00017973,2]
[400800986,1767833445029,-150.0,0.00017973,2]
[400800988,1767833445038,-500.0,0.00017982,2]
[400800990,1767833445047,-1184.88969418,0.0001799,2]
[400800992,1767833445058,-1184.88969418,0.0001799,2]
[400800994,1767833445067,-189.05,0.00017993,2]
[400800996,1767833445077,-151.0,0.00017997,2]
[400800998,1767833445086,-500.0,0.00017998,2]
[400801000,1767833445095,-500.0,0.00017998,2]
[400801002,1767833445104,-154.07533771,0.00017999,2]
[400801004,1767833445114,-99730.92303004,0.00017999,2]
[400801080,1767833445834,-357611.53933076,0.00017999,2]
[400801082,1767833445844,-25868.3866572,0.00017999,2]
[400801084,1767833445854,-300.0,0.00017999,2]
[400801086,1767833445864,-500.0,0.00017999,2]
[400801088,1767833445873,-500.0,0.00017999,2]
[400801090,1767833445883,-314.57652128,0.00017999,2]
[400801092,1767833445892,-300.0,0.00017999,2]
[400801094,1767833445901,-726.33908957,0.00017999,2]
[400801096,1767833445910,-300.0,0.00017999,2]
[400801098,1767833445918,-636.43108262,0.00017999,2]
[400801100,1767833445927,-300.0,0.00017999,2]
[400801102,1767833445937,-666.0,0.00017999,2]
[400801104,1767833445946,-712.02416898,0.00017999,2]
[400801106,1767833445955,-666.0,0.00017999,2]
[400801108,1767833445963,-395.10952792,0.00017999,2]
[400801110,1767833445972,-300.0,0.00017999,2]
[400801112,1767833445982,-666.0,0.00017999,2]
[400801114,1767833445990,-300.0,0.00017999,2]
[400801116,1767833445999,-300.0,0.00017999,2]
[400801118,1767833446009,-666.0,0.00017999,2]
[400801120,1767833446018,-5826.21400436,0.00017999,2]
[400801122,1767833446027,-152.41844929,0.00018,2]
[400801124,1767833446036,-5651075.76304092,0.00018,2]
[400801126,1767833446048,-4173.34297588,0.00018,2]
[400801177,1767833446499,-942.55808089,0.00018,2]
[400801180,1767833446522,-489.29525831,0.00018,2]
[400801182,1767833446532,-298.48554604,0.00018,2]
[400801184,1767833446544,-3196.17604411,0.00018,2]
[400801187,1767833446559,-8786.18541958,0.00018,2]
[400801189,1767833446571,-8947.21879473,0.00018,2]
[400801191,1767833446582,-8943.78386462,0.00018,2]
[400801193,1767833446594,-9077.54866152,0.00018,2]
[400801196,1767833446604,-8943.84023489,0.00018,2]
[400801198,1767833446615,-2150986.52653263,0.00018,2]
[400801200,1767833446624,-665675.88509092,0.00018,2]
[400801202,1767833446633,-205.0,0.00018,2]
[400801204,1767833446642,-200.0,0.00018,2]
[400801206,1767833446651,-200.0,0.00018,2]
[400801208,1767833446660,-212.0,0.00018,2]
[400801210,1767833446671,-265.0,0.00018,2]
[400801212,1767833446681,-250.0,0.00018,2]
[400801214,1767833446691,-215.052,0.00018,2]
[400801216,1767833446700,-210.242,0.00018,2]
[400801218,1767833446709,-226.294,0.00018,2]
[400801220,1767833446718,-250.0,0.00018,2]
[400801222,1767833446727,-157.318,0.00018,2]
[400801224,1767833446737,-297.977,0.00018,2]
[400801226,1767833446750,-190.899,0.00018,2]
[400801228,1767833446761,-163.787,0.00018,2]
[400801230,1767833446770,-211.933,0.00018,2]
[400801231,1767833446779,-250.0,0.00018,2]
[400801233,1767833446789,-227.775,0.00018,2]
[400801235,1767833446799,-168.0,0.00018,2]
[400801237,1767833446809,-30000.0,0.00018,2]
[400801240,1767833446821,-772.32,0.00018,7]
[400801241,1767833446831,-3603.13674807,0.00018,2]
[400801243,1767833446842,-1225457.43228106,0.00018,2]
[400801307,1767833447550,-1169.5,0.000159,2]
[400801308,1767833447563,-744.28107436,0.000159,2]
[400801309,1767833447573,-4548.71892564,0.00018,2]
[400801310,1767833447584,-4000.0,0.00018,2]
[400801312,1767833447603,-365481.17182809,0.00018,2]
[400801315,1767833447619,-1728.4011421,0.00018,2]
[400801317,1767833447630,-6925.42078058,0.00018,2]
[400804673,1767833497397,-500.01139516,0.00013959,2]
[400804674,1767833502638,-293.7471676,0.00013959,2]
[400804676,1767833505543,-406.2528324,0.00013959,2]
[400804677,1767833509344,-2198.38360484,0.00013959,2]
[400804678,1767833509374,-174.361,0.00013959,2]
[400804684,1767833558137,162.0,0.000328,120]
[400804685,1767833571663,-2688.27407974,0.00014144,2]
[400804686,1767833573108,-10000.01,0.00014144,2]
[400804687,1767833573260,-2182.08339088,0.00014144,2]
[400804688,1767833573295,-5635.84321824,0.00014144,2]
[400804689,1767833573389,-68.49253895,0.00014144,2]
[400804690,1767833573415,-9863.0249221,0.00014144,2]
[400804752,1767833650801,-214.65320831,0.00014144,2]
[400804753,1767833653208,-206.40752693,0.00014144,2]
[400804754,1767833656314,214.65320831,0.00014144,2]
[400804755,1767833656485,-247.63682489,0.00014144,2]
[400804756,1767833658655,-401.53167658,0.00014144,2]
[400804757,1767833661690,-144.4239716,0.00014144,2]
[400804758,1767833661720,-3334.2467,0.00014144,2]
[400804759,1767833661776,-230.85244452,0.00014144,2]
[400804760,1767833661858,-2828.01544849,0.00014144,2]
[400804761,1767833661888,-10000.01,0.00014144,2]
[400804762,1767833661929,-1167.38230699,0.00014144,2]
[400804860,1767833755675,164.96,0.00011558,2]
[400804862,1767833769188,-1000.0,0.00014144,2]
[400804863,1767833799886,-160.98990625,0.00014144,2]
[400804864,1767833799915,-160.98990625,0.00014144,2]
[400804865,1767833812254,-172.73298591,0.00014144,2]
[400804866,1767833815738,-183.97092427,0.00014144,2]
[400804867,1767833818498,-302.0,0.00014144,2]
[400804868,1767833821990,-500.0,0.00014144,2]
[400804870,1767833823595,-188.87067386,0.00014144,2]
[400804874,1767833826424,-850.34518633,0.00014144,2]
[400804881,1767833856364,197.44384349,0.00014144,2]
[400804895,1767833932920,-302.08022963,0.00014144,2]
[400804896,1767833932944,-225.27615223,0.00014144,2]
[400804897,1767833935612,-328.97649477,0.00014144,2]
[400804899,1767833944680,9158.60653151,0.00014144,2]
[400804900,1767833944708,5849.7488569,0.00014144,2]
[400804901,1767833945342,-445.747353,0.00014144,2]
[400804902,1767833945364,-54.252647,0.00014144,2]
[400804903,1767833951545,-208.2698907,0.00014144,2]
[400804904,1767833953658,-355.7301093,0.00014144,2]
[400804905,1767833956658,-431.1772499,0.00014144,2]
[400804906,1767833959886,-281.49733174,0.00014144,2]
[400804907,1767833961813,162.66748906,0.00014144,2]
[400804908,1767833961928,-327.35102196,0.00014144,2]
[400804909,1767833966188,162.66748906,0.00014144,2]
[400804910,1767833966347,-152.44,0.00014144,2]
[400804911,1767833968301,-689.2817494,0.00014144,2]
[400804912,1767833969093,-195.0,0.00014156,2]
[400804913,1767833969115,-183.51205855,0.00014167,2]
[400804914,1767833977269,-116.48794145,0.00014167,2]
[400804915,1767833977301,-325.52564244,0.00014176,2]
[400804916,1767833980143,-604.94804546,0.00014176,2]
[400804917,1767833982289,-240.47638426,0.00014176,2]
[400804918,1767833983659,-2372.23568027,0.00014176,2]
[400804919,1767833986318,-250.0,0.0001419,2]
[400804920,1767833986344,-52.0,0.00014196,2]
[400804922,1767833988070,197.44384349,0.00014144,2]
[400804941,1767834061489,-143.0,0.00014196,2]
[400804942,1767834061519,-195.0,0.00014215,2]
[400804943,1767834061994,-3450.14943555,0.00014234,2]
[400804945,1767834065849,10000.01,0.00014144,2]
[400804946,1767834065873,4124.12855389,0.00014144,2]